bitfinex/quotes_ETHUSD_20250415
["timestamp","ask_amount","ask_price","bid_price","bid_amount"]
[1744749428761,6.20939766,1610.5,1610.2,8.5297434]
[1744749428972,6.20939766,1610.5,1610.3,0.57691605]
[1744749429171,6.20939766,1610.5,1610.4,0.57691605]
[1744749431442,6.21079436,1610.1,1609.9,0.796]
[1744749431674,6.21179776,1609.9,1609.6,7.0086828]
[1744749431858,12.42356017,1609.9,1609.6,7.0086828]
[1744749432060,12.42356017,1609.9,1609.7,0.57784534]
[1744749432258,12.42356017,1609.9,1609.7,1.33649815]
[1744749432457,12.42356017,1609.9,1609.8,0.57784534]
[1744749433255,12.4131474,1609.9,1609.8,0.57784534]
[1744749435000,6.20138499,1609.9,1609.8,0.57784534]
[1744749436176,6.21125634,1610.0,1609.8,0.57784534]
[1744749436656,12.42273827,1610.0,1609.9,0.57784534]
[1744749437254,13.25313827,1610.0,1609.9,0.57784534]
[1744749437483,6.21207185,1609.8,1609.6,0.85811995]
[1744749437668,12.42420901,1609.8,1609.6,0.85811995]
[1744749438085,12.42420901,1609.8,1609.7,0.57749379]
[1744749438298,6.21207185,1609.8,1609.7,0.57749379]
[1744749438797,6.20294291,1609.8,1609.7,0.57749379]
[1744749442107,6.21125358,1610.0,1609.7,0.57749379]
[1744749442263,6.21125358,1610.0,1609.8,0.8093]
[1744749442467,6.21118012,1610.0,1609.9,0.57749379]
[1744749443208,6.211866,1609.9,1609.6,0.8321]
[1744749443375,12.42375989,1609.9,1609.6,0.8321]
[1744749443868,12.42375989,1609.9,1609.7,0.57694227]
[1744749444062,12.42375989,1609.9,1609.8,0.57694227]
[1744749444907,12.42375989,1609.9,1609.7,0.57694227]
[1744749445310,12.42375989,1609.9,1609.8,0.57694227]
[1744749445669,6.211866,1609.9,1609.8,0.57694227]
[1744749449984,6.19945693,1609.9,1609.8,0.57694227]
[1744749453127,0.8328,1610.1,1609.8,0.57694227]
[1744749453128,6.2108548,1610.1,1609.8,1.32824227]
[1744749453284,6.2108548,1610.1,1609.8,1.39035364]
[1744749453484,6.2108548,1610.1,1609.9,0.57694227]
[1744749453711,6.2108548,1610.1,1609.9,1.95834434]
[1744749453925,6.2108548,1610.1,1610.0,0.57694227]
[1744749454430,12.42109898,1610.2,1610.0,0.57694227]
[1744749454723,6.21079436,1610.1,1610.0,0.57694227]
[1744749455228,12.42108106,1610.2,1610.0,0.57694227]
[1744749455452,12.42108106,1610.2,1610.0,1.39392981]
[1744749455729,12.40879707,1610.2,1610.1,0.57694227]
[1744749456026,6.19821488,1610.2,1610.1,0.57694227]
[1744749456724,6.96393916,1610.3,1610.1,0.57694227]
[1744749456725,0.7538,1610.3,1610.1,0.57694227]
[1744749456886,6.21013256,1610.3,1610.1,0.57694227]
[1744749457087,6.21013256,1610.3,1610.2,0.57694227]
[1744749459704,6.2106754,1610.2,1609.9,6.76840207]
[1744749460243,12.4213508,1610.2,1610.0,0.57755085]
[1744749460458,6.2106754,1610.2,1610.0,0.57755085]
[1744749460602,6.2106754,1610.2,1610.1,0.57755085]
[1744749461213,6.2101152,1610.3,1610.1,0.57755085]
[1744749461516,7.02345472,1610.6,1610.2,6.78767846]
[1744749461715,6.20895472,1610.6,1610.3,7.56136214]
[1744749462508,6.20895472,1610.6,1610.4,0.57755085]
[1744749463139,6.20925178,1610.5,1610.4,0.57755085]
[1744749463351,6.20964753,1610.4,1610.2,0.55]
[1744749463653,6.20964753,1610.4,1610.2,1.37148468]
[1744749463820,12.41865627,1610.5,1610.2,7.58188597]
[1744749464208,12.41865627,1610.5,1610.3,0.57701037]
[1744749464849,12.41865627,1610.5,1610.4,0.57701037]
[1744749465219,6.20925178,1610.5,1610.4,0.57701037]
[1744749470266,12.41881021,1610.5,1610.2,1.37148468]
[1744749470665,6.20973306,1610.4,1610.3,0.5772551]
[1744749471167,6.20925178,1610.5,1610.3,0.5772551]
[1744749471332,6.20925178,1610.5,1610.4,0.5772551]
[1744749472464,6.20896285,1610.6,1610.4,0.5772551]
[1744749472465,12.41812254,1610.6,1610.4,0.5772551]
[1744749472667,12.41812254,1610.6,1610.3,7.81294742]
[1744749473475,6.20859263,1610.7,1610.4,6.20929267]
[1744749473653,6.20859263,1610.7,1610.4,6.78658247]
[1744749473654,12.41720795,1610.7,1610.4,6.78658247]
[1744749473859,12.41720795,1610.7,1610.4,8.78483807]
[1744749474367,12.41720795,1610.7,1610.5,0.5772898]
[1744749474871,12.41720795,1610.7,1610.4,1.9982556]
[1744749475667,6.20895512,1610.6,1610.4,1.9982556]
[1744749475978,6.20925178,1610.5,1610.4,1.9982556]
[1744749476271,6.20925178,1610.5,1610.3,6.98600445]
[1744749476577,6.20895512,1610.6,1610.4,0.57738304]
[1744749477171,6.20895512,1610.6,1610.5,0.57738304]
[1744749478860,12.41912564,1610.5,1610.3,5.383]
[1744749479047,12.41912564,1610.5,1610.3,6.61894796]
[1744749479430,12.41912564,1610.5,1610.4,0.57763346]
[1744749480275,6.20954391,1610.5,1610.4,0.57763346]
[1744749481970,12.41795072,1610.6,1610.4,0.57763346]
[1744749482336,12.41795072,1610.6,1610.5,0.57763346]
[1744749483477,6.20856251,1610.7,1610.5,0.57763346]
[1744749483680,6.20862887,1610.7,1610.5,0.57763346]
[1744749483885,6.20862887,1610.7,1610.5,1.25634798]
[1744749484169,6.20759347,1611.0,1610.7,6.20834284]
[1744749484396,6.20759347,1611.0,1610.6,0.57763346]
[1744749484533,6.20755286,1611.0,1610.8,0.57763346]
[1744749484950,12.41523305,1611.0,1610.9,0.57763346]
[1744749485184,6.20704609,1611.1,1610.9,0.57763346]
[1744749485383,12.41414941,1611.1,1610.9,0.57763346]
[1744749485534,12.41414941,1611.1,1610.9,1.25619601]
[1744749485729,12.41414941,1611.1,1610.9,0.67856255]
[1744749485935,6.20732464,1611.0,1610.9,0.67856255]
[1744749486179,6.20732464,1611.0,1610.7,6.1971]
[1744749486537,6.20784204,1610.9,1610.7,6.1971]
[1744749486768,12.41584348,1610.9,1610.7,5.383]
[1744749487085,12.41584348,1610.9,1610.8,0.57747357]
[1744749488084,13.22814348,1610.9,1610.8,0.57747357]
[1744749488287,6.20869864,1610.7,1610.5,5.382]
[1744749488489,6.20869864,1610.7,1610.5,5.99611]
[1744749488782,12.41739728,1610.7,1610.5,5.99611]
[1744749488988,12.41739728,1610.7,1610.6,0.57758168]
[1744749489191,6.20869864,1610.7,1610.6,0.57758168]
[1744749489395,6.19619351,1610.7,1610.6,0.57758168]
[1744749489552,6.19619351,1610.7,1610.6,1.23495085]
[1744749490050,6.19619351,1610.7,1610.6,2.06575085]
[1744749494893,6.19619351,1610.7,1610.6,1.23495085]
[1744749495090,6.97409351,1610.7,1610.6,0.57758168]
[1744749495411,6.97409351,1610.7,1609.9,0.77]
[1744749495412,6.21118012,1610.0,1609.9,0.77]
[1744749495706,6.21177186,1609.9,1609.7,0.77]
[1744749495904,6.21177186,1609.9,1609.7,1.46825304]
[1744749496260,6.21177186,1609.9,1609.8,0.55]
[1744749496460,6.21119194,1610.0,1609.7,7.68056677]
[1744749496661,6.21119194,1610.0,1609.7,7.74268063]
[1744749497018,6.21119194,1610.0,1609.8,0.55]
[1744749497225,7.00577605,1610.6,1610.1,0.7693]
[1744749497524,6.20939977,1610.5,1610.2,9.81916786]
[1744749497700,0.7966,1610.6,1610.2,0.55]
[1744749498021,6.21010486,1610.3,1610.1,0.7693]
[1744749499520,6.21010486,1610.3,1610.1,2.50433421]
[1744749500122,6.21010486,1610.3,1610.1,2.56643425]
[1744749500282,6.20930761,1610.5,1610.2,0.55]
[1744749500482,6.20930761,1610.5,1610.2,6.76029325]
[1744749500882,12.41871969,1610.5,1610.2,6.76029325]
[1744749501218,12.41871969,1610.5,1610.3,0.67602933]
[1744749501903,12.4187594,1610.5,1610.3,0.67602933]
[1744749502216,6.20963735,1610.4,1610.3,0.67602933]
[1744749502416,6.20963735,1610.4,1610.2,0.55]
[1744749502719,12.41894111,1610.5,1610.2,0.55]
[1744749505715,12.41874887,1610.5,1610.2,0.55]
[1744749505919,6.20967831,1610.4,1610.2,0.55]
[1744749506120,6.20154702,1610.4,1610.2,0.55]
[1744749506323,6.20154702,1610.4,1610.2,2.09756865]
[1744749508422,6.20964122,1610.4,1610.2,2.09756865]
[1744749508792,6.20930761,1610.5,1610.2,8.3699616]
[1744749508995,12.41870144,1610.5,1610.2,8.3699616]
[1744749509826,12.41871883,1610.5,1610.2,8.3699616]
[1744749510122,12.41871883,1610.5,1610.3,0.83699616]
[1744749510319,6.20963735,1610.4,1610.2,2.15966497]
[1744749510509,6.20963735,1610.4,1610.2,0.55]
[1744749511722,6.19628567,1610.4,1610.2,0.55]
[1744749512821,6.21002297,1610.3,1610.1,0.7693]
[1744749512986,12.42126649,1610.2,1610.0,0.8117]
[1744749513187,6.21079436,1610.1,1610.0,0.55]
[1744749513492,6.21047523,1610.2,1610.0,1.22434]
[1744749513795,12.42109438,1610.2,1610.0,1.22434]
[1744749514452,6.21079436,1610.1,1610.0,1.22434]
[1744749514620,6.21047523,1610.2,1610.0,1.22434]
[1744749515751,12.42114013,1610.2,1610.0,1.22434]
[1744749517155,6.21047523,1610.2,1610.0,1.22434]
[1744749517353,6.19825328,1610.2,1610.0,1.22434]
[1744749518309,6.21079436,1610.1,1609.9,6.1934]
[1744749518853,6.21079436,1610.1,1609.9,6.25550823]
[1744749519554,6.21054053,1610.2,1609.9,12.46695236]
[1744749519752,12.42109404,1610.2,1609.9,12.40484413]
[1744749520443,6.21054053,1610.2,1609.9,12.40484413]
[1744749520614,6.21054053,1610.2,1609.9,18.61631242]
[1744749520815,6.21054053,1610.2,1609.9,19.91179683]
[1744749521246,12.42111655,1610.2,1609.9,13.70032854]
[1744749521451,6.21027905,1610.3,1610.0,6.21115939]
[1744749521632,6.2102065,1610.3,1610.0,12.42224275]
[1744749521831,13.17677484,1610.4,1610.1,7.45300374]
[1744749522036,6.210068,1610.3,1610.1,1.24222428]
[1744749522736,0.7572,1610.4,1610.2,0.55]
[1744749523041,6.99697023,1610.6,1610.2,0.61210438]
[1744749523248,6.99697023,1610.6,1610.2,1.1093818]
[1744749523457,13.20616896,1610.6,1610.3,6.20996704]
[1744749523947,6.20937095,1610.5,1610.2,7.31962706]
[1744749524353,12.4188184,1610.5,1610.2,7.31962706]
[1744749524856,6.20937095,1610.5,1610.2,7.31962706]
[1744749525019,6.20937095,1610.5,1610.2,13.52990377]
[1744749525352,13.20613148,1610.6,1610.3,6.20999063]
[1744749526451,6.20930555,1610.5,1610.2,7.25752268]
[1744749526756,6.20930555,1610.5,1610.3,0.72575227]
[1744749527048,6.20930555,1610.5,1610.2,13.52990478]
[1744749527226,6.20930555,1610.5,1610.2,18.84880843]
[1744749529053,13.20631383,1610.6,1610.3,6.21001426]
[1744749530253,13.24105152,1610.7,1610.4,6.75960814]
[1744749531240,6.97269595,1611.1,1610.7,0.55]
[1744749531440,6.53081479,1611.2,1610.9,6.2075612]
[1744749531842,6.97164283,1611.3,1610.9,5.48342356]
[1744749532045,6.97164283,1611.3,1611.0,6.20717703]
[1744749532244,6.97164283,1611.3,1611.0,12.41436292]
[1744749532646,6.20624283,1611.3,1611.0,13.21866292]
[1744749533221,7.06841746,1611.4,1611.1,10.42793367]
[1744749533222,0.05,1611.4,1611.1,10.42793367]
[1744749533423,0.05,1611.4,1611.2,6.20644069]
[1744749534118,0.05,1611.4,1611.2,6.26850301]
[1744749534360,6.20650792,1611.3,1611.1,5.378]
[1744749534655,6.20655412,1611.2,1611.1,5.378]
[1744749535047,7.03255412,1611.2,1611.1,5.378]
[1744749535362,6.20717912,1611.1,1610.8,6.1719]
[1744749535531,6.20740819,1611.0,1610.8,6.1719]
[1744749536031,12.41491163,1611.0,1610.8,5.377]
[1744749536928,6.20770997,1610.9,1610.8,5.377]
[1744749537128,6.20822243,1610.8,1610.5,6.2091078]
[1744749537457,6.20822243,1610.8,1610.5,11.64823035]
[1744749537661,12.41669396,1610.8,1610.5,5.43908571]
[1744749538039,6.20851088,1610.7,1610.5,5.43908571]
[1744749538232,6.20851088,1610.7,1610.5,7.66269722]
[1744749539153,6.20822243,1610.8,1610.5,7.66269722]
[1744749539354,6.20851277,1610.7,1610.5,7.66269722]
[1744749539762,6.19632484,1610.7,1610.5,5.377]
[1744749539934,6.20886626,1610.6,1610.5,5.377]
[1744749540860,13.18059143,1610.7,1610.5,5.377]
[1744749541577,0.7548,1611.2,1610.6,5.03156247]
[1744749541861,6.20783095,1610.9,1610.6,11.2404112]
[1744749542052,12.41584033,1610.9,1610.7,1.12404112]
[1744749542250,6.20821888,1610.8,1610.5,17.79528367]
[1744749542464,7.01525234,1611.0,1610.7,13.18469981]
[1744749542644,6.20774117,1610.9,1610.7,0.7679]
[1744749542843,7.01525234,1611.0,1610.7,6.97633123]
[1744749543060,6.20745234,1611.0,1610.7,13.18469478]
[1744749543261,6.20745234,1611.0,1610.7,8.71063001]
[1744749543569,6.20735042,1611.0,1610.7,8.71063001]
[1744749543777,6.20735042,1611.0,1610.7,8.71062262]
[1744749544075,12.41481965,1611.0,1610.7,8.71062262]
[1744749544372,6.20735042,1611.0,1610.7,8.71062262]
[1744749544792,12.41481965,1611.0,1610.7,8.71062262]
[1744749545081,6.20735042,1611.0,1610.7,8.71062262]
[1744749545434,6.19693064,1611.0,1610.7,8.71062262]
[1744749545691,12.40446254,1611.0,1610.7,8.71062262]
[1744749546038,6.2081142,1610.8,1610.6,0.55]
[1744749546239,6.2081142,1610.8,1610.5,12.34932732]
[1744749546544,6.2081142,1610.8,1610.5,18.55847]
[1744749546980,13.17314123,1610.9,1610.6,6.20884948]
[1744749547548,6.96513777,1610.9,1610.6,6.20884948]
[1744749547747,13.17302521,1610.9,1610.6,8.06456794]
[1744749547977,13.17305336,1610.9,1610.6,8.06456794]
[1744749553799,6.20814822,1610.8,1610.6,1.85582311]
[1744749554393,6.20783777,1610.9,1610.6,8.06466162]
[1744749554598,6.20783777,1610.9,1610.6,8.06456898]
[1744749555294,12.41580542,1610.9,1610.6,8.06456898]
[1744749557494,13.19954079,1611.0,1610.7,6.20846417]
[1744749557859,6.20771705,1610.9,1610.7,0.55]
[1744749558595,12.41560444,1610.9,1610.7,0.55]
[1744749558772,0.7847,1611.0,1610.7,0.55]
[1744749558971,6.207446,1611.0,1610.7,7.6198358]
[1744749559198,7.0206069,1611.3,1610.8,7.02235358]
[1744749559359,7.02035773,1611.3,1610.9,10.36658641]
[1744749559587,6.20668125,1611.2,1610.9,15.74158641]
[1744749559786,6.20668125,1611.2,1610.9,21.9491986]
[1744749560023,12.413561,1611.2,1611.0,2.19491986]
[1744749560496,6.20693935,1611.1,1611.0,2.19491986]
[1744749560711,6.20693935,1611.1,1611.0,0.55]
[1744749561524,6.20693935,1611.1,1610.9,5.375]
[1744749561816,6.20797774,1610.9,1610.7,0.8614569]
[1744749561985,6.20809535,1610.8,1610.7,0.8614569]
[1744749562187,6.20809535,1610.8,1610.7,1.4114569]
[1744749562418,12.41589953,1610.9,1610.7,1.4114569]
[1744749564204,6.20786375,1610.9,1610.7,1.4114569]
[1744749565751,12.41579318,1610.9,1610.7,1.4114569]
[1744749569247,6.20786375,1610.9,1610.7,1.4114569]
[1744749569426,13.22632372,1611.0,1610.7,7.61990763]
[1744749570764,12.41497022,1611.0,1610.8,1.57429076]
[1744749571358,7.01654374,1611.2,1610.9,6.20770997]
[1744749571647,12.41356614,1611.2,1610.9,6.20770997]
[1744749572051,6.20694133,1611.1,1610.9,6.20770997]
[1744749572364,7.07769837,1611.4,1611.0,10.40784115]
[1744749572670,6.25590034,1611.4,1611.2,0.55]
[1744749573114,12.46198783,1611.4,1611.2,0.55]
[1744749573317,6.25590034,1611.4,1611.2,0.55]
[1744749573518,0.05,1611.4,1611.2,6.75636485]
[1744749573766,0.05,1611.4,1611.3,1.3163]
[1744749573930,0.05,1611.4,1611.3,2.42946346]
[1744749577170,6.20627794,1611.3,1611.1,1.79438411]
[1744749577370,0.05,1611.4,1611.2,0.55]
[1744749577740,6.25592026,1611.4,1611.2,0.55]
[1744749578141,12.46185201,1611.4,1611.2,0.55]
[1744749578353,12.46185201,1611.4,1611.2,1.77222075]
[1744749578752,6.20655412,1611.2,1611.1,1.79438411]
[1744749578955,6.20655412,1611.2,1611.0,5.43706482]
[1744749579243,6.20693935,1611.1,1611.0,5.98706482]
[1744749579451,6.20693935,1611.1,1611.0,5.925]
[1744749579778,6.20693935,1611.1,1611.0,5.375]
[1744749579997,12.41519101,1611.0,1610.8,0.0620681]
[1744749580140,6.20872129,1610.7,1610.6,5.374]
[1744749582846,6.20993424,1610.4,1610.2,5.374]
[1744749583043,6.20941246,1610.5,1610.2,5.4360953]
[1744749583250,12.41894457,1610.5,1610.2,5.4360953]
[1744749583486,6.20941246,1610.5,1610.4,0.55]
[1744749584975,6.20963735,1610.4,1610.3,4.15257931]
[1744749585180,6.20963735,1610.4,1610.3,4.70257931]
[1744749587683,6.20963735,1610.4,1610.3,1.09360953]
[1744749588879,6.20963735,1610.4,1610.3,0.55]
[1744749590156,6.21002297,1610.3,1610.2,5.374]
[1744749590484,6.1971556,1610.3,1610.2,5.924]
[1744749591359,6.20963735,1610.4,1610.2,5.924]
[1744749591550,6.20963735,1610.4,1610.3,4.15896978]
[1744749591748,6.20963735,1610.4,1610.3,5.11847641]
[1744749592763,6.20963735,1610.4,1610.3,1.50950663]
[1744749596056,6.20963735,1610.4,1610.3,0.55]
[1744749598370,0.7726,1610.8,1610.5,0.55]
[1744749598566,6.98090918,1610.8,1610.5,0.55]
[1744749598778,6.2085653,1610.7,1610.5,0.55]
[1744749599070,6.20886626,1610.6,1610.5,1.30504579]
[1744749599285,6.20886626,1610.6,1610.5,0.55]
[1744749600403,6.20886626,1610.6,1610.2,6.1569]
[1744749600573,6.21002297,1610.3,1610.2,5.374]
[1744749603599,6.20982694,1610.4,1610.2,5.374]
[1744749603600,6.20983762,1610.4,1610.2,5.374]
[1744749604088,6.21002297,1610.3,1610.2,5.924]
[1744749604295,6.21002297,1610.3,1610.2,6.5714]
[1744749606308,12.41961644,1610.4,1610.2,6.5714]
[1744749606608,6.21002297,1610.3,1610.2,6.5714]
[1744749609314,12.41959956,1610.4,1610.2,6.5714]
[1744749609927,6.21002297,1610.3,1610.2,6.5714]
[1744749610081,6.21002297,1610.3,1610.2,5.924]
[1744749612819,6.20184865,1610.3,1610.2,5.924]
[1744749613126,6.20184865,1610.3,1610.2,0.55]
[1744749615127,6.20976357,1610.4,1610.2,0.55]
[1744749615426,12.41825495,1610.6,1610.3,7.51861002]
[1744749615867,6.20927423,1610.5,1610.3,1.3086]
[1744749616127,6.20927423,1610.5,1610.3,3.042415]
[1744749617326,6.20859806,1610.7,1610.3,3.10450948]
[1744749617528,6.20823326,1610.8,1610.6,0.55]
[1744749618393,6.19684785,1610.8,1610.6,0.55]
[1744749618891,6.20899483,1610.6,1610.4,5.375]
[1744749619120,12.41810038,1610.6,1610.4,5.375]
[1744749619312,6.20899483,1610.6,1610.4,6.66927456]
[1744749619510,12.41806199,1610.6,1610.4,6.66927456]
[1744749622332,6.20925178,1610.5,1610.4,5.375]
[1744749622524,6.96905178,1610.5,1610.4,5.375]
[1744749622725,6.20983807,1610.4,1610.1,12.39677674]
[1744749623442,6.21040864,1610.2,1610.1,5.372]
[1744749624044,6.19826374,1610.2,1610.1,5.372]
[1744749624612,6.19826374,1610.2,1609.8,11.80443953]
[1744749624613,6.21148482,1610.0,1609.8,5.372]
[1744749624816,6.21148482,1610.0,1609.7,0.8231]
[1744749624817,6.21246799,1609.7,1609.5,5.8231]
[1744749625031,6.21246799,1609.7,1609.5,0.8231]
[1744749625342,6.21246799,1609.7,1609.5,2.11004633]
[1744749625534,6.21202627,1609.8,1609.5,2.11004633]
[1744749625715,12.42420156,1609.8,1609.5,2.11004633]
[1744749625914,6.2121006,1609.8,1609.5,2.11004633]
[1744749626126,6.2121006,1609.8,1609.5,7.50000205]
[1744749626328,6.96577272,1610.2,1609.8,6.21161215]
[1744749626550,6.21085083,1610.1,1609.8,6.21161215]
[1744749626738,12.42182455,1610.1,1609.8,6.21161215]
[1744749626932,12.42182455,1610.1,1609.7,7.52188048]
[1744749627136,12.42182455,1610.1,1609.7,13.73406096]
[1744749627336,6.21128616,1610.0,1609.7,8.9702866]
[1744749627545,6.21128616,1610.0,1609.7,15.1824762]
[1744749627852,6.21082239,1610.1,1609.7,8.9702866]
[1744749627853,6.21081271,1610.1,1609.7,8.9702866]
[1744749628048,6.21081271,1610.1,1609.8,6.21180756]
[1744749628214,6.21081271,1610.1,1609.8,13.94806072]
[1744749628415,6.21081271,1610.1,1609.8,7.73623813]
[1744749629242,6.21081271,1610.1,1609.8,7.73635413]
[1744749629448,12.4219432,1610.1,1609.8,1.52443057]
[1744749629635,12.4218629,1610.1,1609.8,1.52443057]
[1744749629838,6.21123695,1610.0,1609.8,1.52443057]
[1744749630037,6.21123695,1610.0,1609.7,13.73412969]
[1744749630354,12.42183545,1610.1,1609.7,13.734104]
[1744749630723,12.42177116,1610.1,1609.8,6.211938]
[1744749631050,6.21081271,1610.1,1609.8,6.211938]
[1744749631249,12.42176568,1610.1,1609.8,6.211938]
[1744749631555,6.21081271,1610.1,1609.8,6.211938]
[1744749631856,0.7553,1610.2,1609.8,1.37338373]
[1744749632022,12.4229641,1610.0,1609.7,1.3097]
[1744749632225,6.21081632,1610.1,1609.8,6.2119044]
[1744749632451,6.21081632,1610.1,1609.8,12.42372992]
[1744749633152,0.7553,1610.2,1609.9,6.76155257]
[1744749633322,0.7553,1610.2,1610.0,6.21097185]
[1744749633523,13.21985771,1610.4,1610.1,0.55]
[1744749633747,13.21980223,1610.4,1610.1,6.76078728]
[1744749634461,6.21006325,1610.3,1610.1,0.55]
[1744749635340,6.19712283,1610.3,1610.1,0.55]
[1744749635956,13.21992677,1610.4,1610.1,0.55]
[1744749636366,6.21010303,1610.3,1610.1,0.55]
[1744749637137,7.00996579,1610.4,1610.1,6.7607705]
[1744749637366,6.20929004,1610.5,1610.1,1.30144705]
[1744749637668,6.20929004,1610.5,1610.3,0.55]
[1744749638869,12.41870083,1610.5,1610.3,0.55]
[1744749640468,6.2092581,1610.5,1610.3,0.55]
[1744749640840,12.41013449,1610.5,1610.3,0.55]
[1744749643567,6.20886626,1610.6,1610.1,0.75144705]
[1744749643774,12.42040685,1610.3,1610.0,6.96486159]
[1744749643970,6.21045236,1610.2,1610.0,0.7537]
[1744749644175,12.42033964,1610.3,1610.0,6.96484299]
[1744749644476,6.21016852,1610.3,1610.0,6.9647507]
[1744749644776,6.21016852,1610.3,1610.0,13.99491768]
[1744749644969,6.21016852,1610.3,1610.0,7.7838413]
[1744749645778,0.7866,1610.2,1609.9,0.67615526]
[1744749645940,6.21098702,1610.1,1609.8,18.57784647]
[1744749646347,6.21098702,1610.1,1609.9,0.55]
[1744749646745,6.21118012,1610.0,1609.8,5.373]
[1744749647080,6.2121493,1609.8,1609.5,53.8]
[1744749647244,6.212382,1609.7,1609.5,5.373]
[1744749647745,7.018582,1609.7,1609.5,5.373]
[1744749647950,13.23123248,1609.7,1609.5,5.373]
[1744749648251,7.018582,1609.7,1609.5,5.373]
[1744749648457,7.00860821,1610.0,1609.7,6.21233446]
[1744749648662,7.00860821,1610.0,1609.7,6.99313446]
[1744749648979,13.21998837,1610.0,1609.7,6.99313446]
[1744749649278,6.21170885,1609.9,1609.6,0.55]
[1744749649467,6.21206585,1609.8,1609.5,12.34151967]
[1744749649680,7.00868587,1610.0,1609.7,6.21221838]
[1744749649882,6.20846926,1610.8,1610.1,0.55]
[1744749650049,0.7966,1610.7,1610.4,6.20932496]
[1744749650247,0.7966,1610.7,1610.6,6.20886626]
[1744749650774,7.00537104,1610.7,1610.3,6.76000308]
[1744749650980,6.20895667,1610.6,1610.2,6.96582146]
[1744749651281,6.20957092,1610.5,1610.2,7.02797059]
[1744749651577,0.7966,1610.7,1610.3,0.55]
[1744749651776,0.7966,1610.7,1610.3,6.75993838]
[1744749651981,6.20901159,1610.6,1610.3,6.75993838]
[1744749652174,6.20901159,1610.6,1610.3,0.55]
[1744749652369,12.41807413,1610.6,1610.3,0.55]
[1744749652574,6.20939765,1610.5,1610.3,0.55]
[1744749652752,6.20939765,1610.5,1610.1,12.42147595]
[1744749652753,6.20939765,1610.5,1610.2,6.21035014]
[1744749653678,6.20891436,1610.6,1610.2,12.42060344]
[1744749653874,6.20891436,1610.6,1610.3,6.20999924]
[1744749654689,12.41801646,1610.6,1610.2,12.4205066]
[1744749654991,6.98593287,1610.4,1610.0,12.35572814]
[1744749655291,12.42055672,1610.3,1610.0,5.374]
[1744749655494,6.21057021,1610.2,1610.0,5.374]
[1744749655791,7.03569436,1610.1,1610.0,5.374]
[1744749656085,0.8249,1610.1,1609.9,6.21156402]
[1744749656289,7.03497029,1610.3,1610.0,6.21114886]
[1744749657204,7.03497029,1610.3,1610.1,0.55]
[1744749657494,6.21091006,1610.1,1609.9,0.55]
[1744749657693,12.42189919,1610.1,1609.9,0.55]
[1744749657879,6.21091006,1610.1,1609.9,0.55]
[1744749658085,6.21091006,1610.1,1609.8,7.04375193]
[1744749658265,6.21091006,1610.1,1609.8,9.01508269]
[1744749658466,6.21041875,1610.2,1609.7,5.371]
[1744749658467,7.03890464,1610.0,1609.7,5.371]
[1744749658664,6.21160359,1609.9,1609.7,5.371]
[1744749658866,13.25026219,1610.0,1609.7,11.5833366]
[1744749659179,6.21120464,1610.0,1609.7,17.79542516]
[1744749659688,7.0385487,1610.1,1609.7,17.79542516]
[1744749659888,6.21049755,1610.2,1609.9,6.21140629]
[1744749660070,6.21049755,1610.2,1609.9,7.00010629]
[1744749660404,12.42107919,1610.2,1609.9,0.7887]
[1744749660798,6.21049755,1610.2,1609.9,0.7887]
[1744749661016,0.7852,1610.3,1609.9,0.7887]
[1744749661314,6.99532888,1610.3,1609.9,7.00011968]
[1744749661680,6.21053145,1610.2,1609.9,8.64181213]
[1744749661878,12.42120003,1610.2,1609.9,8.64181213]
[1744749662180,13.20584615,1610.3,1610.0,0.55]
[1744749662976,6.2104133,1610.2,1610.0,0.55]
[1744749663178,12.42052697,1610.3,1610.0,0.55]
[1744749663379,12.42052697,1610.3,1610.0,7.68652434]
[1744749663591,12.42052697,1610.3,1610.0,1.47539193]
[1744749664012,6.21041651,1610.2,1610.0,1.47539193]
[1744749664520,6.21041651,1610.2,1610.0,0.55]
[1744749665108,12.42099851,1610.2,1610.0,0.55]
[1744749665921,6.21006954,1610.3,1610.0,4.1588637]
[1744749666144,7.01793949,1610.7,1610.3,6.20991012]
[1744749666434,6.20912499,1610.6,1610.4,4.4178637]
[1744749666586,12.41809146,1610.6,1610.4,5.48064108]
[1744749666787,12.41809146,1610.6,1610.4,4.4178637]
[1744749667233,6.20925178,1610.5,1610.4,4.9678637]
[1744749670017,6.20925178,1610.5,1610.4,1.359]
[1744749670218,6.21018486,1610.3,1610.1,6.1997]
[1744749670426,6.21018486,1610.3,1610.1,6.2617986]
[1744749670748,12.42055362,1610.3,1610.1,7.86996124]
[1744749671600,6.21040864,1610.2,1610.1,8.41996124]
[1744749671928,6.2114762,1610.0,1609.8,11.58810622]
[1744749672226,6.21040864,1610.2,1609.6,52.8230637]
[1744749672227,6.21200586,1609.8,1609.6,52.8230637]
[1744749672454,6.21200586,1609.8,1609.5,5.371]
[1744749672455,6.21272365,1609.6,1609.5,5.371]
[1744749672659,12.42568607,1609.6,1609.4,0.7832]
[1744749672822,6.21310966,1609.5,1609.4,0.43920637]
[1744749673029,6.21349571,1609.4,1609.2,6.1542]
[1744749673223,6.21388181,1609.3,1609.2,5.371]
[1744749673428,6.21451299,1609.2,1608.9,5.371]
[1744749673625,7.04221169,1609.5,1608.9,5.371]
[1744749673626,6.21465415,1609.1,1608.9,5.371]
[1744749673932,6.21504039,1609.0,1608.9,6.34730637]
[1744749674238,7.02810386,1609.3,1608.9,12.56267532]
[1744749674567,6.21389922,1609.3,1609.0,6.27706373]
[1744749674754,6.21389922,1609.3,1609.0,3.67100958]
[1744749675053,6.21389922,1609.3,1609.1,0.55]
[1744749675248,6.21389922,1609.3,1609.1,0.97210096]
[1744749677255,12.42805511,1609.3,1609.1,0.97210096]
[1744749677860,0.7791,1609.7,1609.4,0.55]
[1744749678157,0.7529,1609.9,1609.4,4.1588637]
[1744749678462,0.7529,1609.9,1609.3,6.21374035]
[1744749678463,6.21336343,1609.5,1609.3,5.372]
[1744749678654,6.21349571,1609.4,1609.3,5.372]
[1744749681156,12.42727902,1609.4,1609.2,0.55]
[1744749681558,6.21318513,1609.5,1609.2,4.1588637]
[1744749681864,6.21318513,1609.5,1609.3,0.41588637]
[1744749683232,12.42648091,1609.5,1609.3,0.41588637]
[1744749683432,12.42650083,1609.5,1609.3,0.41588637]
[1744749683735,12.42650083,1609.5,1609.3,0.96588637]
[1744749683736,6.21349571,1609.4,1609.3,0.96588637]
[1744749685130,0.8307,1609.7,1609.4,0.55]
[1744749685331,6.21122064,1610.0,1609.6,0.55]
[1744749685532,6.21118012,1610.0,1609.6,0.55]
[1744749685731,6.21156593,1609.9,1609.6,0.55]